[Event "Gibraltar Challengers B 2019"]
[Site "Caleta"]
[Date "2019.01.27"]
[Round "2"]
[White "Broekman, Willem"]
[Black "Rodriguez Perez, Angel Mariano"]
[Result "1/2-1/2"]
[ECO "E81"]
[WhiteElo "2071"]
[BlackElo "2204"]
[Annotator "NA"]
[PlyCount "127"]
[EventDate "2019.01.18"]
[EventType "swiss"]
[EventCountry "GGB"]
[SourceTitle "playchess.com"]
[Source "ChessBase"]
[SourceQuality "1"]
[TimeControl "6600+10"]

{[%evp 8,122,38,27,46,14,46,47,39,29,47,-22,45,32767,32767,32767,32767,32767,32767,67,64,32767,47,47,55,0,187,173,173,11,3,20,79,46,32767,32767,32767,32767,24,0,0,0,58,32767,32767,32767,212,190,32767,32767,32767,32767,32767,32767,32767,32767,21,0,0,32767,32767,0,32767,0,32767,32767,32767,35,37,0,0,32767,0,32767,0,0,32767,0,5,8,32767,-8,0,32767,32767,32767,8,0,8,0,8,32767,32767,32767,-8,32767,32767,-248,-297,-267,32767,32767,-152,-220,-265,-261,-136,32767,0,0,0,-8,-8,32767,0,32767,0]} 1. d4 {[%emt 0:00:00]} g6 {[%emt 0:00:00]} 2. c4 {[%emt 0:00:07]} Bg7 {[%emt 0:00:00]} 3. e4 {[%emt 0:00:28]} d6 {[%emt 0:00:35]} 4. Nc3 {[%emt 0:00:15]} Nf6 {[%emt 0:02:36]} 5. f3 {[%emt 0:00:08]} O-O {[%emt 0:00:39]} 6. Be3 {[%emt 0:00:05]} c6 {[%emt 0:00:21]} 7. Qd2 {[%emt 0:00:14]} a6 {[%emt 0:00:18]} 8. Bd3 {[%emt 0:04:05] LiveBook: 71 Games} b5 {[%emt 0:00:39]} 9. cxb5 {[%emt 0:02:52] E81: King's Indian: Sämisch: 6th move deviations (including 6 Be3 c6)} (9. Nge2 Nbd7 10. Rd1 Bb7 11. O-O bxc4 12. Bxc4 a5 13. Na4 Ba6 14. Bxa6 Rxa6 15. Rc1 Qa8 16. b3 Nb6 17. Nec3 Ne8 {0-1 (66) Gagunashvili,M (2588)-Jojua,D (2575) Tbilisi 2017}) 9... cxb5 {[%emt 0:00:58]} 10. Rc1 {[%emt 0:03:56]} Bb7 {[%emt 0:00:46]} 11. Nge2 {[%emt 0:03:15]} Nbd7 {[%emt 0:02:43]} 12. O-O {[%emt 0:03:42]} Nb6 $146 {[%emt 0:00:53]} ({Predecessor:} 12... Rc8 13. Bb1 Nb6 14. b3 Nfd7 15. Nf4 e6 16. Rfd1 Qe7 17. Nd3 Rfd8 18. a4 {½-½ (18) Ploetz,J-Schulz,P Schwabstedt 1994}) 13. b3 {[%emt 0:00:57]} Rc8 {[%emt 0:01:11]} 14. Kh1 {[%emt 0:01:27]} Nfd7 {[%emt 0:02:52]} 15. Rfd1 {[%emt 0:02:56]} e6 {[%emt 0:01:01]} 16. Bh6 {[%emt 0:10:55]} f5 $2 {[%emt 0:01:56] [#]} (16... Bxh6 $11 17. Qxh6 Qe7) 17. Bxg7 $1 {[%emt 0:00:10]} Kxg7 {[%emt 0:00:05]} 18. exf5 $2 {[%emt 0:03:51]} (18. Nf4 $18 Qf6 19. d5) 18... exf5 {[%emt 0:00:25]} 19. Nf4 {[%emt 0:02:37]} Qf6 {[%emt 0:00:22]} 20. Re1 {[%emt 0:05:20]} Rfe8 {[%emt 0:02:02]} 21. Rxe8 {[%emt 0:00:28]} Rxe8 {[%emt 0:00:06]} 22. Re1 {[%emt 0:00:53]} Qf7 {[%emt 0:01:42]} 23. Rxe8 {[%emt 0:04:35]} Qxe8 {[%emt 0:00:05]} 24. Kg1 {[%emt 0:01:10]} Kf6 {[%emt 0:07:04]} (24... Nf6 $11) 25. Kf2 {[%emt 0:02:10]} g5 {[%emt 0:00:47]} 26. Nfe2 {[%emt 0:17:40]} Nf8 {[%emt 0:10:58]} 27. Ng3 {[%emt 0:03:40]} Bc8 {[%emt 0:09:49]} 28. Nge4+ {[%emt 0:08:07]} fxe4 {[%emt 0:00:41]} 29. Nxe4+ {[%emt 0:00:06]} Kg7 {[%emt 0:00:47]} 30. Qxg5+ {[%emt 0:00:32]} Qg6 {[%emt 0:05:47]} 31. Qe7+ {[%emt 0:00:06]} Qf7 {[%emt 0:01:31]} 32. Qg5+ {[%emt 0:02:35]} Ng6 {[%emt 0:03:28]} 33. Nxd6 {[%emt 0:00:54]} Qf4 {[%emt 0:04:45]} 34. Ne8+ {[%emt 0:01:40]} Kf8 {[%emt 0:06:06]} 35. Qd8 {[%emt 0:03:45]} Qh4+ {[%emt 0:02:45]} 36. Qxh4 {[%emt 0:00:08]} Nxh4 {[%emt 0:00:05]} 37. Nd6 {[%emt 0:01:25]} Ng6 {[%emt 0:00:37]} 38. a4 {[%emt 0:01:38]} bxa4 {[%emt 0:01:08]} 39. bxa4 {[%emt 0:00:24]} a5 $1 {[%emt 0:00:09]} 40. Ke3 {[%emt 0:03:35]} Ke7 {[%emt 0:00:37]} 41. Nxc8+ {[%emt 0:00:30]} Nxc8 {[%emt 0:00:06]} 42. g3 {[%emt 0:02:20]} Ke6 {[%emt 0:01:08]} 43. h4 {[%emt 0:00:48]} Nb6 {[%emt 0:00:43]} 44. h5 {[%emt 0:01:30]} Nd5+ {[%emt 0:00:53]} 45. Kd2 {[%emt 0:00:27]} Nf8 {[%emt 0:00:25]} 46. Bc4 {[%emt 0:00:45]} Nd7 {[%emt 0:00:40]} 47. g4 {[%emt 0:00:54]} N7b6 {[%emt 0:00:49]} 48. Bb3 {[%emt 0:00:34]} Kf6 {[%emt 0:00:19]} 49. Kd3 {[%emt 0:01:13]} Kg5 {[%emt 0:04:58]} 50. Ke4 {[%emt 0:00:02]} Nc3+ {[%emt 0:00:34]} 51. Ke5 {[%emt 0:00:11]} Ncxa4 {[%emt 0:00:38]} 52. d5 $2 {[%emt 0:02:58] [#]} (52. Be6 $1 $11 {and White is okay.} Nb2 53. f4+ Kh4 54. f5 N2c4+ 55. Bxc4 Nxc4+ 56. Ke6) 52... Nc5 $1 {[%emt 0:03:00]} 53. Ba2 {[%emt 0:00:15]} a4 {[%emt 0:00:48]} 54. d6 {[%emt 0:00:46]} Nbd7+ {[%emt 0:07:38]} ({Black should try} 54... a3 $19 55. Kd4 Nb7) 55. Kd4 {[%emt 0:00:41]} Kf4 {[%emt 0:00:31]} 56. Kc4 {[%emt 0:00:37] [#]} h6 {[%emt 0:00:37]} ({Stronger than} 56... Kxf3 57. g5 $11) (56... Nb7 $1 $19 {and Black stays clearly on top.} 57. h6 Nxd6+ 58. Kb4 Nf8) 57. Kb4 {[%emt 0:00:15]} Kxf3 $2 {[%emt 0:05:36] [#]} (57... Nb7 $19 58. Be6 Nf8) 58. g5 $1 {[%emt 0:00:04]} hxg5 {[%emt 0:00:10]} 59. h6 {[%emt 0:00:02]} Nd3+ {[%emt 0:01:30]} 60. Kxa4 {[%emt 0:00:17]} N3e5 {[%emt 0:00:19]} 61. h7 {[%emt 0:00:38]} Ng6 $11 {[%emt 0:00:14]} 62. Kb5 {[%emt 0:00:24]} g4 {[%emt 0:00:47]} 63. Be6 {[%emt 0:00:24]} Nf6 {[%emt 0:00:46]} 64. d7 {[%emt 0:00:23]} 1/2-1/2

[Event "Gibraltar Challengers B 2019"]
[Site "Caleta"]
[Date "2019.01.27"]
[Round "2"]
[White "Ungureanu, Sandu"]
[Black "Obiamiwe, Paul"]
[Result "1/2-1/2"]
[ECO "E77"]
[WhiteElo "2057"]
[BlackElo "1903"]
[Annotator "NA"]
[PlyCount "70"]
[EventDate "2019.01.18"]
[EventType "swiss"]
[EventCountry "GGB"]
[SourceTitle "playchess.com"]
[Source "ChessBase"]
[SourceQuality "1"]
[TimeControl "6600+10"]

1. d4 {[%emt 0:00:00]} Nf6 {[%emt 0:05:21]} 2. c4 {[%emt 0:00:12]} g6 {[%emt 0:00:09]} 3. Nc3 {[%emt 0:00:05]} Bg7 {[%emt 0:00:05]} 4. e4 {[%emt 0:00:07]} d6 {[%emt 0:00:04]} 5. f4 {[%emt 0:00:05]} O-O {[%emt 0:00:09]} 6. Nf3 {[%emt 0:00:04]} c5 {[%emt 0:00:31]} 7. d5 {[%emt 0:00:08]} e6 {[%emt 0:00:09]} 8. Be2 {[%emt 0:00:09]} exd5 {[%emt 0:00:08]} 9. exd5 {[%emt 0:00:04]} Re8 {[%emt 0:01:09]} 10. O-O {[%emt 0:00:06]} Bf5 {[%emt 0:01:18]} 11. Bd3 {[%emt 0:00:25]} Ne4 {[%emt 0:02:23]} 12. Nxe4 {[%emt 0:02:15] E77: King's Indian: Four Pawns Attack: 6 Be2 incl 6...c5 7 d5 e6 8 Nf3, but not Benoni} Bxe4 {[%emt 0:00:03]} 13. Re1 $146 {[%emt 0:01:43]} ({Predecessor:} 13. Bxe4 Rxe4 14. Qd3 Qe7 15. f5 Nd7 16. fxg6 hxg6 17. Bg5 f6 18. Rae1 Re8 19. Bh4 Bh6 {1-0 (34) Mazurek,R (2152)-Lubbe,M (2286) Germany 2018}) 13... Bxf3 {[%emt 0:02:21]} 14. Rxe8+ {[%emt 0:00:08]} Qxe8 {[%emt 0:00:07]} 15. Qxf3 {[%emt 0:00:08]} Qe1+ {[%emt 0:00:51]} 16. Qf1 {[%emt 0:00:17]} Bd4+ {[%emt 0:01:17]} 17. Kh1 {[%emt 0:00:09]} Qxf1+ {[%emt 0:01:03]} 18. Bxf1 {[%emt 0:00:06]} Nd7 {[%emt 0:00:03]} 19. Rb1 {[%emt 0:00:46]} Re8 {[%emt 0:00:49]} 20. Bd2 {[%emt 0:01:25]} Nf6 {[%emt 0:00:42]} 21. g3 {[%emt 0:00:30]} Ne4 {[%emt 0:05:00]} 22. Be1 {[%emt 0:01:15]} Nf2+ {[%emt 0:01:41]} 23. Kg2 {[%emt 0:01:03]} Ng4 {[%emt 0:01:17]} 24. Bd2 {[%emt 0:01:32]} Ne3+ {[%emt 0:03:21]} 25. Kf3 {[%emt 0:01:44]} Nxf1 {[%emt 0:01:50]} 26. Rxf1 {[%emt 0:01:02]} f5 {[%emt 0:01:43]} 27. b3 {[%emt 0:03:57]} Kf7 {[%emt 0:00:47]} 28. h3 {[%emt 0:00:57]} h5 {[%emt 0:01:54]} 29. Re1 {[%emt 0:01:37]} Rxe1 {[%emt 0:01:48]} 30. Bxe1 {[%emt 0:00:08]} Kf6 {[%emt 0:01:41]} 31. b4 {[%emt 0:00:57]} Ke7 {[%emt 0:07:10]} 32. b5 $11 {[%emt 0:02:25]} Bf6 {[%emt 0:10:31]} 33. a4 {[%emt 0:00:36]} Kd7 {[%emt 0:00:20]} 34. g4 {[%emt 0:00:16]} Kc7 {[%emt 0:01:28]} 35. gxh5 {[%emt 0:01:15]} gxh5 {[%emt 0:00:03] Ke4 [%emt 00:00:41]} 1/2-1/2

[Event "Gibraltar Challengers B 2019"]
[Site "Caleta"]
[Date "2019.01.27"]
[Round "2"]
[White "Kozarcanin, Sead"]
[Black "Pereira Lopez, Aketza"]
[Result "1-0"]
[ECO "A01"]
[WhiteElo "2048"]
[BlackElo "1861"]
[Annotator "NA"]
[PlyCount "51"]
[EventDate "2019.01.18"]
[EventType "swiss"]
[EventCountry "GGB"]
[SourceTitle "playchess.com"]
[Source "ChessBase"]
[SourceQuality "1"]
[TimeControl "6600+10"]

1. b3 {[%emt 0:00:00]} e5 {[%emt 0:00:00]} 2. Bb2 {[%emt 0:00:00]} Nc6 {[%emt 0:00:05]} 3. e3 {[%emt 0:00:00]} d5 {[%emt 0:00:15]} 4. Bb5 {[%emt 0:00:20]} Bd6 {[%emt 0:00:32]} 5. f4 {[%emt 0:00:34] LiveBook: 151 Games} f6 {[%emt 0:00:24]} 6. Ne2 {[%emt 0:09:36] A01: Nimzowitsch-Larsen Opening} (6. fxe5 fxe5 7. Bxc6+ bxc6 8. Bxe5 Qh4+ 9. g3 Qe4 10. Bxg7 Qxh1 11. Qh5+ Ke7 12. Kf2 Be6 13. Nf3 Nf6 14. Bxf6+ Kxf6 {0-1 (63) Nielsen,P (2654)-Anton Guijarro,D (2634) Berlin 2015}) 6... Nge7 {[%emt 0:00:20]} 7. O-O {[%emt 0:00:17]} O-O {[%emt 0:00:56]} 8. c4 {[%emt 0:01:20]} a6 $146 {[%emt 0:07:24]} ({Predecessor:} 8... d4 9. exd4 exd4 10. Bxc6 Nxc6 11. Ng3 Re8 12. d3 Qe7 {0-1 (27) Framberk,J (2008)-Walek,P (1761) Kouty nad Desnou 2012}) 9. Bxc6 {[%emt 0:01:21]} bxc6 {[%emt 0:00:11]} 10. c5 {[%emt 0:00:15]} Bxc5 {[%emt 0:01:15]} 11. fxe5 {[%emt 0:00:02]} fxe5 {[%emt 0:00:32]} 12. Bxe5 {[%emt 0:00:02]} Rxf1+ {[%emt 0:02:04]} 13. Qxf1 {[%emt 0:00:03]} Nf5 {[%emt 0:07:48]} 14. Qf4 {[%emt 0:02:16]} Qe7 {[%emt 0:00:16]} 15. Ng3 {[%emt 0:03:19]} (15. Nd4 $11) 15... Nxg3 {[%emt 0:05:16]} 16. Qxg3 {[%emt 0:00:05]} Bd6 {[%emt 0:02:03]} 17. Bxd6 {[%emt 0:00:15]} cxd6 {[%emt 0:00:40]} 18. Nc3 {[%emt 0:00:34]} Bf5 {[%emt 0:02:06]} 19. Rf1 {[%emt 0:01:52]} g6 {[%emt 0:02:04]} 20. Rxf5 {[%emt 0:00:05]} Kh8 {[%emt 0:00:00]} 21. Qg5 {[%emt 0:00:33]} Qg7 {[%emt 0:01:03]} 22. Rf4 {[%emt 0:00:23]} h6 {[%emt 0:00:34]} 23. Qf6 {[%emt 0:00:04]} g5 {[%emt 0:00:22]} 24. Rf2 {[%emt 0:00:20]} Re8 {[%emt 0:00:56]} 25. Qxd6 $18 {[%emt 0:00:37]} Kh7 {[%emt 0:00:56]} 26. Qxc6 {[%emt 0:02:34]} 1-0

[Event "Gibraltar Challengers B 2019"]
[Site "Caleta"]
[Date "2019.01.27"]
[Round "2"]
[White "Dasaolu, Rotimi"]
[Black "Teh, Wee Zhun"]
[Result "0-1"]
[ECO "D11"]
[WhiteElo "2038"]
[BlackElo "1818"]
[Annotator "NA"]
[PlyCount "99"]
[EventDate "2019.01.18"]
[EventType "swiss"]
[EventCountry "GGB"]
[SourceTitle "playchess.com"]
[Source "ChessBase"]
[SourceQuality "1"]
[TimeControl "6600+10"]

1. Nf3 {[%emt 0:14:30]} d5 {[%emt 0:00:00]} 2. c4 {[%emt 0:00:18]} c6 {[%emt 0:00:12]} 3. Qc2 {[%emt 0:00:12]} Nf6 {[%emt 0:02:37]} 4. d4 {[%emt 0:00:57]} dxc4 {[%emt 0:08:55]} 5. a4 {[%emt 0:03:12]} Na6 {[%emt 0:25:18]} 6. Nbd2 {[%emt 0:10:17]} (6. Bd2 $11 {keeps the balance.}) 6... Nb4 {[%emt 0:06:11]} 7. Qxc4 $2 {[%emt 0:05:52]} (7. Qb1 $17) 7... a5 {[%emt 0:00:00]} 8. e4 {[%emt 0:00:40]} Bg4 {[%emt 0:01:37]} 9. Bd3 {[%emt 0:15:22]} Nxd3+ {[%emt 0:16:36]} 10. Qxd3 {[%emt 0:00:03]} e6 {[%emt 0:00:39]} 11. O-O {[%emt 0:00:12]} Bxf3 {[%emt 0:12:02]} 12. Nxf3 {[%emt 0:00:48]} Be7 {[%emt 0:00:57]} 13. Rd1 {[%emt 0:04:37]} O-O {[%emt 0:02:27]} 14. h3 {[%emt 0:01:24]} h6 {[%emt 0:03:51]} 15. Bf4 {[%emt 0:00:46]} Re8 {[%emt 0:08:40]} 16. Qc2 {[%emt 0:02:30]} Qb6 {[%emt 0:01:01]} 17. Rac1 {[%emt 0:01:08]} Rad8 {[%emt 0:01:43]} 18. Be3 {[%emt 0:08:55]} Qa6 {[%emt 0:02:26]} 19. Ne5 {[%emt 0:01:45]} Bb4 {[%emt 0:04:15]} 20. g4 {[%emt 0:02:15]} Nd7 {[%emt 0:01:55]} 21. f4 {[%emt 0:04:53]} Nxe5 {[%emt 0:03:20]} 22. dxe5 {[%emt 0:02:53]} Rxd1+ {[%emt 0:00:58]} 23. Rxd1 {[%emt 0:00:03]} b5 {[%emt 0:01:49]} 24. Qd3 {[%emt 0:06:38]} Qb7 {[%emt 0:00:26]} 25. b3 {[%emt 0:00:24]} bxa4 {[%emt 0:00:38]} 26. bxa4 {[%emt 0:00:03]} c5 {[%emt 0:00:04]} 27. Qc4 {[%emt 0:03:59]} Qc6 {[%emt 0:00:22]} 28. Kg2 {[%emt 0:09:55]} Qxa4 {[%emt 0:00:16]} 29. Rd6 {[%emt 0:00:08]} Qa3 {[%emt 0:00:56]} 30. Rd3 {[%emt 0:02:00]} Qb2+ {[%emt 0:00:16]} 31. Kf3 {[%emt 0:04:17]} Qb1 {[%emt 0:00:02]} 32. Rd7 {[%emt 0:00:25]} Qh1+ {[%emt 0:00:19]} 33. Ke2 {[%emt 0:00:05]} Qg2+ {[%emt 0:00:30]} 34. Bf2 {[%emt 0:01:00]} Qxh3 {[%emt 0:00:14]} 35. f5 {[%emt 0:00:07]} Qxg4+ {[%emt 0:00:02]} 36. Kf1 {[%emt 0:00:01]} Qh3+ $19 {[%emt 0:00:33]} 37. Ke2 {[%emt 0:00:04]} Rf8 {[%emt 0:00:23]} 38. f6 {[%emt 0:01:19]} Qh5+ {[%emt 0:00:14]} 39. Kf1 {[%emt 0:00:08]} Qxe5 {[%emt 0:00:18]} 40. fxg7 {[%emt 0:00:02]} Kxg7 {[%emt 0:00:44]} 41. Rd3 {[%emt 0:00:01]} Kh7 {[%emt 0:00:14]} 42. Rh3 {[%emt 0:00:47]} Qa1+ {[%emt 0:00:14]} 43. Ke2 {[%emt 0:00:02]} Qb2+ {[%emt 0:00:08]} 44. Kf1 {[%emt 0:00:09]} Qb1+ {[%emt 0:00:01]} 45. Ke2 {[%emt 0:00:05]} Rg8 {[%emt 0:00:26]} 46. Be3 {[%emt 0:01:28]} Rg2+ {[%emt 0:00:22]} 47. Kf3 {[%emt 0:00:13]} Rg6 {[%emt 0:00:17]} 48. Qe2 {[%emt 0:00:56]} f5 {[%emt 0:00:38]} 49. Bf4 {[%emt 0:00:10]} Qb3+ {[%emt 0:00:13]} 50. Be3 {[%emt 0:00:14]} 0-1

[Event "Gibraltar Challengers B 2019"]
[Site "Caleta"]
[Date "2019.01.27"]
[Round "2"]
[White "Cramling Bellon, Anna"]
[Black "Livesey, R Nigel"]
[Result "1-0"]
[ECO "A90"]
[WhiteElo "2025"]
[BlackElo "1797"]
[Annotator "NA"]
[PlyCount "89"]
[EventDate "2019.01.18"]
[EventType "swiss"]
[EventCountry "GGB"]
[SourceTitle "playchess.com"]
[Source "ChessBase"]
[SourceQuality "1"]
[TimeControl "6600+10"]

1. d4 {[%emt 0:00:00]} e6 {[%emt 0:00:02]} 2. c4 {[%emt 0:00:00]} f5 {[%emt 0:00:13]} 3. Nf3 {[%emt 0:00:16]} Nf6 {[%emt 0:00:08]} 4. g3 {[%emt 0:00:23]} d5 {[%emt 0:00:13]} 5. Bg2 {[%emt 0:01:39]} c6 {[%emt 0:00:10]} 6. Qc2 {[%emt 0:03:06] LiveBook: 233 Games} Bd6 {[%emt 0:01:55]} 7. O-O {[%emt 0:01:00]} O-O {[%emt 0:00:12]} 8. b3 {[%emt 0:19:54]} Qe7 {[%emt 0:00:43]} 9. Nc3 {[%emt 0:05:16] A90: Dutch Defence: Miscellaneous and Modern Stonewall (with ...Bd6)} Bd7 {[%emt 0:02:34]} (9... Ne4 10. Ne5 Nd7 11. Nxe4 fxe4 12. Bf4 Nxe5 13. dxe5 Bc5 14. Rac1 b6 15. cxd5 cxd5 16. Qd2 h6 {1-0 (95) Onischuk,A (2662)-Radjabov,T (2738) Berlin 2015}) 10. Bg5 {[%emt 0:19:10]} h6 {[%emt 0:01:56]} 11. Bf4 {[%emt 0:01:11]} Bxf4 {[%emt 0:01:41]} 12. gxf4 {[%emt 0:00:02]} Ne4 $146 {[%emt 0:02:04]} ({Predecessor:} 12... Be8 13. e3 Ne4 14. Rac1 Nd7 15. cxd5 exd5 16. Ne5 Nxe5 17. dxe5 Nxc3 18. Qxc3 {½-½ (51) Farago,S (2320)-Sugar,K (2220) Budapest 1986}) 13. Ne5 {[%emt 0:05:34]} Be8 {[%emt 0:01:11]} 14. Nxe4 {[%emt 0:00:44]} fxe4 {[%emt 0:01:39]} 15. e3 {[%emt 0:01:59]} Bh5 {[%emt 0:00:32]} 16. f3 {[%emt 0:01:55]} exf3 {[%emt 0:03:31]} 17. Bxf3 {[%emt 0:00:29]} Bxf3 {[%emt 0:05:12]} 18. Rxf3 {[%emt 0:01:51]} Qe8 {[%emt 0:06:50]} 19. Rg3 {[%emt 0:07:33]} Nd7 {[%emt 0:05:17]} 20. Qg2 {[%emt 0:05:09]} Nxe5 {[%emt 0:04:51]} 21. Rxg7+ {[%emt 0:00:17] Double Attack} ({Don't take} 21. fxe5 Rf7 $14) 21... Kh8 {[%emt 0:00:04]} 22. fxe5 {[%emt 0:04:30]} Rg8 {[%emt 0:02:30]} 23. Rxg8+ {[%emt 0:00:22]} Qxg8 {[%emt 0:00:11]} 24. Qxg8+ {[%emt 0:00:10]} Rxg8+ {[%emt 0:00:25]} 25. Kf2 {[%emt 0:00:09]} Rf8+ {[%emt 0:00:43]} 26. Ke2 {[%emt 0:01:15]} Rg8 {[%emt 0:06:51]} 27. Rf1 {[%emt 0:01:05]} Rg2+ {[%emt 0:01:53]} 28. Rf2 {[%emt 0:00:16]} Rg1 {[%emt 0:00:30]} 29. cxd5 {[%emt 0:17:16]} cxd5 {[%emt 0:02:32]} 30. Rf6 {[%emt 0:03:11]} Rg2+ {[%emt 0:00:29]} 31. Kf3 {[%emt 0:06:03]} Rxh2 {[%emt 0:02:46]} 32. Rxe6 {[%emt 0:00:08]} Rxa2 {[%emt 0:00:31]} 33. Rxh6+ {[%emt 0:00:21]} Kg7 {[%emt 0:00:02]} 34. Rd6 {[%emt 0:00:09]} Ra5 {[%emt 0:03:06]} 35. Rd7+ {[%emt 0:00:12]} Kf8 {[%emt 0:00:48]} 36. Rxb7 {[%emt 0:00:04]} Ke8 {[%emt 0:00:35]} 37. e4 {[%emt 0:00:37]} dxe4+ {[%emt 0:00:07]} 38. Kxe4 {[%emt 0:00:01]} Ra1 {[%emt 0:00:31]} 39. d5 {[%emt 0:01:02]} Re1+ {[%emt 0:00:21]} 40. Kf5 {[%emt 0:00:08]} Rh1 {[%emt 0:01:34]} 41. d6 {[%emt 0:00:58]} Rh5+ {[%emt 0:00:18]} 42. Ke6 {[%emt 0:00:06]} Rh6+ {[%emt 0:00:18]} 43. Kd5 {[%emt 0:00:02]} Rh1 {[%emt 0:01:02]} 44. Rxa7 {[%emt 0:00:26]} Rb1 {[%emt 0:00:33]} 45. Ke6 {[%emt 0:00:20]} 1-0

[Event "Gibraltar Challengers B 2019"]
[Site "Caleta"]
[Date "2019.01.27"]
[Round "2"]
[White "Kakulidis, Ellen"]
[Black "Diaz Mino, Daniel"]
[Result "1-0"]
[ECO "B07"]
[WhiteElo "2021"]
[BlackElo "1769"]
[Annotator "NA"]
[PlyCount "69"]
[EventDate "2019.01.18"]
[EventType "swiss"]
[EventCountry "GGB"]
[SourceTitle "playchess.com"]
[Source "ChessBase"]
[SourceQuality "1"]
[TimeControl "6600+10"]

1. d4 {[%emt 0:02:23]} Nf6 {[%emt 0:00:00]} 2. g3 {[%emt 0:00:04]} g6 {[%emt 0:00:27]} 3. Bg2 {[%emt 0:00:03]} Bg7 {[%emt 0:00:12]} 4. e4 {[%emt 0:00:05]} d6 {[%emt 0:00:06] LiveBook: 1331 Games} 5. Nc3 {[%emt 0:00:08]} O-O {[%emt 0:00:29]} 6. Nge2 {[%emt 0:00:24]} Nbd7 {[%emt 0:00:26]} 7. h3 {[%emt 0:00:23]} c5 {[%emt 0:00:39]} 8. Be3 {[%emt 0:03:38]} c4 $146 {[%emt 0:01:17] B07: Pirc Defence: Miscellaneous Systems} ({Predecessor:} 8... cxd4 9. Bxd4 a6 10. O-O Rb8 11. Ba7 Ra8 12. Bd4 Rb8 13. Ba7 Ra8 14. Bd4 Rb8 15. Ba7 Ra8 16. Bd4 Rb8 17. Ba7 {½-½ (17) Danin,A (2575)-Shimanov,A (2606) Kazan 2015}) 9. O-O {[%emt 0:00:11]} Rb8 {[%emt 0:00:46]} 10. a4 {[%emt 0:04:10]} b6 {[%emt 0:00:14]} 11. Qd2 {[%emt 0:08:52]} Re8 {[%emt 0:02:09]} 12. g4 {[%emt 0:06:17]} h5 {[%emt 0:02:28]} (12... Bb7 $16 {was worth a try.} 13. Ng3 Rf8) 13. g5 {[%emt 0:00:00]} Nh7 {[%emt 0:09:27]} 14. f4 {[%emt 0:00:40]} e6 {[%emt 0:03:19]} 15. Nb5 {[%emt 0:09:54]} Bf8 {[%emt 0:04:31]} 16. Nxa7 {[%emt 0:00:55]} Bb7 {[%emt 0:00:30]} 17. Nb5 {[%emt 0:01:09]} d5 {[%emt 0:07:07]} 18. Nec3 {[%emt 0:00:00]} Bb4 {[%emt 0:00:14]} 19. Qf2 {[%emt 0:01:50]} dxe4 {[%emt 0:01:37]} 20. Nxe4 {[%emt 0:05:05]} Ba6 {[%emt 0:01:59]} 21. c3 {[%emt 0:02:11]} Bxb5 {[%emt 0:00:06]} 22. axb5 {[%emt 0:01:27]} Be7 {[%emt 0:05:19]} 23. Nd2 {[%emt 0:11:17]} f6 {[%emt 0:05:18]} 24. h4 {[%emt 0:02:16]} Rf8 {[%emt 0:02:13]} 25. Qe2 {[%emt 0:01:52]} fxg5 {[%emt 0:07:09]} 26. fxg5 {[%emt 0:04:38]} Rc8 {[%emt 0:02:23]} 27. Bf4 {[%emt 0:00:25]} e5 {[%emt 0:02:08]} 28. Bd5+ {[%emt 0:00:27]} Kh8 {[%emt 0:02:46]} 29. Bxe5+ {[%emt 0:00:00]} Nxe5 {[%emt 0:00:00]} 30. Qxe5+ {[%emt 0:00:00]} Nf6 {[%emt 0:02:38]} 31. gxf6 {[%emt 0:00:00]} Bxf6 {[%emt 0:02:20]} 32. Rxf6 {[%emt 0:00:00]} Qxf6 {[%emt 0:01:17]} 33. Nxc4 {[%emt 0:00:30]} Qxe5 {[%emt 0:00:00]} 34. Nxe5 $18 {[%emt 0:00:00]} Kg7 {[%emt 0:00:00]} 35. Ra7+ {[%emt 0:02:25]} 1-0